bitfinex/quotes_BTCUSD_20240629
["timestamp","ask_amount","ask_price","bid_price","bid_amount"]
[1719692724597,0.05412106,61156.0,61155.0,0.528024]
[1719692724749,0.15902673,61156.0,61155.0,0.528024]
[1719692724927,0.12271952,61156.0,61155.0,0.528024]
[1719692725133,0.12840889,61156.0,61155.0,0.528024]
[1719692725331,0.12271952,61156.0,61155.0,0.528024]
[1719692725795,0.12271952,61156.0,61155.0,0.532024]
[1719692726244,0.12271952,61156.0,61155.0,0.537024]
[1719692726655,0.12271952,61156.0,61155.0,0.532024]
[1719692726953,0.12271952,61156.0,61155.0,0.6142264]
[1719692727160,0.07534,61156.0,61155.0,0.78156538]
[1719692727369,0.07534,61156.0,61155.0,0.78956538]
[1719692733597,0.00084,61156.0,61155.0,0.78956538]
[1719692733896,0.07534,61156.0,61155.0,0.78956538]
[1719692750421,0.00084,61156.0,61155.0,0.78956538]
[1719692750627,0.07534,61156.0,61155.0,0.78956538]
[1719692752509,0.00153016,61168.0,61167.0,0.01]
[1719692752695,0.73698616,61168.0,61167.0,0.22]
[1719692753395,0.735456,61168.0,61167.0,0.22]
[1719692753832,0.738456,61168.0,61167.0,0.221]
[1719692754253,0.735456,61168.0,61167.0,0.22]
[1719692754870,0.74049892,61168.0,61167.0,0.22]
[1719692755078,0.97238892,61168.0,61167.0,0.2201]
[1719692755494,1.01748677,61168.0,61167.0,0.2201]
[1719692755726,1.01948677,61168.0,61167.0,0.2211]
[1719692755909,1.00591277,61168.0,61167.0,0.2211]
[1719692756121,0.85621277,61168.0,61167.0,0.2201]
[1719692756937,0.79071277,61168.0,61167.0,0.2201]
[1719692758593,0.81796908,61168.0,61167.0,0.2201]
[1719692759007,0.75246908,61168.0,61167.0,0.2201]
[1719692759648,0.59476908,61168.0,61167.0,0.2201]
[1719692759860,0.40974513,61168.0,61167.0,0.2201]
[1719692760562,0.07839313,61168.0,61167.0,0.3053]
[1719692760744,0.15289313,61168.0,61167.0,0.414]
[1719692761154,0.12564077,61168.0,61167.0,0.424]
[1719692762223,0.12564077,61168.0,61167.0,0.414]
[1719692762428,0.12564077,61168.0,61167.0,0.424]
[1719692762651,0.05114077,61168.0,61167.0,0.4864]
[1719692762860,0.12564077,61168.0,61167.0,0.4764]
[1719692763075,0.12059785,61168.0,61167.0,0.4864]
[1719692763288,0.12059785,61168.0,61167.0,0.4764]
[1719692763289,0.12567176,61168.0,61167.0,0.4764]
[1719692763489,0.12567176,61168.0,61167.0,0.3288]
[1719692763700,0.12567176,61168.0,61167.0,0.2201]
[1719692763922,0.32957076,61168.0,61167.0,0.2201]
[1719692765448,0.32957076,61168.0,61167.0,0.63444898]
[1719692765449,0.05117176,61168.0,61167.0,0.63444898]
[1719692765693,0.05117176,61168.0,61167.0,0.82834898]
[1719692765694,0.08057391,61168.0,61167.0,0.82834898]
[1719692765910,0.0755,61168.0,61167.0,0.82834898]
[1719692766544,0.0745,61168.0,61167.0,0.82834898]
[1719692766749,0.0745,61168.0,61167.0,0.83834898]
[1719692766960,0.0745,61168.0,61167.0,0.85234898]
[1719692767170,0.00084,61169.0,61168.0,0.2139]
[1719692767372,0.07534,61169.0,61168.0,0.68786894]
[1719692768692,0.07534,61169.0,61168.0,0.70086894]
[1719692769550,0.00084,61169.0,61168.0,0.70086894]
[1719692769761,0.07534,61169.0,61168.0,0.70086894]
[1719692769966,0.07534,61169.0,61168.0,0.71386894]
[1719692772472,0.07534,61169.0,61168.0,0.69747388]
[1719692776285,0.07534,61169.0,61168.0,0.89747388]
[1719692778778,0.07534,61169.0,61168.0,0.89839788]
[1719692781508,0.00084,61169.0,61168.0,0.89839788]
[1719692781718,0.07534,61169.0,61168.0,0.89839788]
[1719692797876,0.00084,61169.0,61168.0,0.99839788]
[1719692805495,0.00084,61169.0,61168.0,0.79449788]
[1719692805705,0.00084,61169.0,61168.0,0.80449788]
[1719692806118,0.00084,61169.0,61168.0,0.79449788]
[1719692806318,0.00084,61169.0,61168.0,0.80449788]
[1719692806540,0.08102641,61202.0,61168.0,0.79449788]
[1719692806749,0.08102641,61202.0,61178.0,0.2]
[1719692806750,0.48811044,61185.0,61178.0,0.2]
[1719692806955,0.0745,61179.0,61178.0,0.21639506]
[1719692807223,0.07992872,61179.0,61178.0,0.21639506]
[1719692807989,0.07992872,61179.0,61178.0,0.21739506]
[1719692808192,0.07992872,61179.0,61178.0,0.21639506]
[1719692810455,0.07992872,61179.0,61178.0,0.01639506]
[1719692810918,0.07992872,61179.0,61176.0,0.22]
[1719692811390,0.0745,61179.0,61176.0,0.22]
[1719692812361,1.472816,61178.0,61176.0,0.22]
[1719692812602,1.472816,61178.0,61177.0,0.2]
[1719692812833,1.472816,61178.0,61176.0,0.22]
[1719692813070,1.472816,61178.0,61177.0,0.01639506]
[1719692813919,0.02421205,61178.0,61177.0,0.01639506]
[1719692814118,0.02421205,61178.0,61177.0,0.01739506]
[1719692814119,1.46175505,61178.0,61177.0,0.01739506]
[1719692814965,1.46714289,61178.0,61177.0,0.01749506]
[1719692815156,1.46714289,61178.0,61177.0,0.01849506]
[1719692816274,1.44293084,61178.0,61177.0,0.01849506]
[1719692816522,1.46705741,61178.0,61177.0,0.01849506]
[1719692817343,1.46705741,61178.0,61177.0,0.01649506]
[1719692817759,1.46905741,61178.0,61177.0,0.01749506]
[1719692818297,1.46905741,61178.0,61177.0,0.0011]
[1719692819398,1.44493084,61178.0,61177.0,0.0011]
[1719692819637,1.4686909,61178.0,61177.0,0.0011]
[1719692821173,1.4686909,61178.0,61177.0,0.00104814]
[1719692821877,1.44493084,61178.0,61177.0,0.00104814]
[1719692822105,1.468772,61178.0,61177.0,0.00104814]
[1719692822530,1.46877201,61178.0,61177.0,0.00104814]
[1719692824562,0.03122901,61178.0,61177.0,0.00104814]
[1719692824937,0.0054,61178.0,61177.0,0.00104814]
[1719692825153,3.346936,61178.0,61177.0,0.00104814]
[1719692825363,3.102303,61178.0,61177.0,0.00104814]
[1719692825564,3.10771401,61178.0,61177.0,0.00104814]
[1719692826345,3.13155518,61178.0,61177.0,0.00104814]
[1719692828066,3.10886418,61178.0,61177.0,0.00104814]
[1719692828270,3.10878558,61178.0,61177.0,0.00104814]
[1719692830537,3.10878558,61178.0,61168.0,0.311324]
[1719692830538,0.0034,61177.0,61168.0,0.000924]
[1719692830746,0.0745,61171.0,61168.0,0.01731906]
[1719692831098,2.44181559,61170.0,61168.0,0.01731906]
[1719692831298,2.227324,61169.0,61168.0,0.01731906]
[1719692831502,2.25123503,61169.0,61168.0,0.01731906]
[1719692831723,2.25658547,61169.0,61168.0,0.01731906]
[1719692833325,2.25658547,61169.0,61168.0,0.02131906]
[1719692833714,2.25658547,61169.0,61168.0,0.01731906]
[1719692834095,2.25658547,61169.0,61168.0,0.02231906]
[1719692834312,2.25658547,61169.0,61168.0,0.02731906]
[1719692834736,2.25651599,61169.0,61168.0,0.02731906]
[1719692835186,2.25647313,61169.0,61168.0,0.02731906]
[1719692835393,2.25637313,61169.0,61168.0,0.02731906]
[1719692836518,2.25637313,61169.0,61168.0,0.010924]
[1719692837676,2.25633965,61169.0,61168.0,0.010924]
[1719692839519,2.25623965,61169.0,61168.0,0.010924]
[1719692840931,2.25618338,61169.0,61168.0,0.010924]
[1719692842759,2.25608338,61169.0,61168.0,0.010924]
[1719692843936,2.25598338,61169.0,61168.0,0.010924]
[1719692844342,2.25602981,61169.0,61168.0,0.010924]
[1719692845362,2.3031337,61169.0,61168.0,0.010924]
[1719692847318,2.3031337,61169.0,61168.0,0.011024]
[1719692847529,2.30314564,61169.0,61168.0,0.011024]
[1719692847953,2.30314589,61169.0,61168.0,0.011024]
[1719692850287,2.30314589,61169.0,61168.0,0.126524]
[1719692850524,2.30319859,61169.0,61168.0,0.126524]
[1719692850692,2.27927833,61169.0,61168.0,0.126524]
[1719692850890,2.30319844,61169.0,61168.0,0.126524]
[1719692851949,2.41289344,61169.0,61168.0,0.126524]
[1719692853387,1.93026244,61169.0,61168.0,0.126524]
[1719692853804,1.90634233,61169.0,61168.0,0.126524]
[1719692854006,1.93026676,61169.0,61168.0,0.126524]
[1719692857073,1.93033652,61169.0,61168.0,0.126524]
[1719692860007,1.93033652,61169.0,61168.0,0.346524]
[1719692860211,1.90634233,61169.0,61168.0,0.346524]
[1719692860443,1.93027774,61169.0,61168.0,0.346524]
[1719692860669,1.90634233,61169.0,61168.0,0.346524]
[1719692860863,1.93027774,61169.0,61168.0,0.346524]
[1719692862170,1.93027774,61169.0,61168.0,0.126524]
[1719692863343,1.90634233,61169.0,61168.0,0.126524]
[1719692863544,1.93023084,61169.0,61168.0,0.126524]
[1719692864589,1.93023084,61169.0,61168.0,0.346524]
[1719692866340,1.93023084,61169.0,61168.0,0.126524]
[1719692866540,1.90634233,61169.0,61168.0,0.126524]
[1719692866895,1.93008912,61169.0,61168.0,0.126524]
[1719692867308,2.09242283,61169.0,61155.0,0.000924]
[1719692867519,0.0745,61156.0,61155.0,0.13081906]
[1719692867730,0.0744,61156.0,61155.0,0.01731906]
[1719692868179,0.07964682,61156.0,61155.0,0.01731906]
[1719692868382,0.0744,61156.0,61155.0,0.01731906]
[1719692868790,0.0743,61156.0,61155.0,0.01831906]
[1719692869000,0.07953141,61156.0,61155.0,0.11831906]
[1719692869527,1.56894741,61156.0,61155.0,0.11831906]
[1719692869704,0.07953141,61156.0,61155.0,0.11931906]
[1719692869907,0.06287199,61156.0,61155.0,0.33731906]
[1719692870141,0.06287199,61156.0,61155.0,0.11731906]
[1719692870142,1.05727399,61156.0,61155.0,0.11731906]
[1719692870352,1.05727399,61156.0,61155.0,0.12331906]
[1719692871364,1.05727399,61156.0,61155.0,0.32331906]
[1719692872731,0.74978743,61156.0,61155.0,0.306924]
[1719692872925,0.74978743,61156.0,61155.0,0.326924]
[1719692872926,0.82951812,61156.0,61155.0,0.326924]
[1719692873141,0.95689669,61156.0,61155.0,0.306924]
[1719692874440,0.95689669,61156.0,61155.0,0.326924]
[1719692874854,0.95689669,61156.0,61155.0,0.306924]
[1719692875473,0.95689669,61156.0,61155.0,0.307024]
[1719692875710,0.95689669,61156.0,61155.0,0.007024]
[1719692876546,0.95689669,61156.0,61155.0,0.001024]
[1719692876751,0.95773669,61156.0,61155.0,0.001024]
[1719692877122,0.95873669,61156.0,61155.0,0.001024]
[1719692880069,0.95873669,61156.0,61155.0,0.201024]
[1719692880687,0.95873669,61156.0,61155.0,0.001024]
[1719692881328,0.95873669,61156.0,61155.0,0.201024]
[1719692881553,0.95873669,61156.0,61155.0,0.001024]
[1719692881784,0.953606,61156.0,61155.0,0.201024]
[1719692882347,0.95830265,61156.0,61155.0,0.201024]
[1719692882574,0.88380265,61156.0,61155.0,0.221024]
[1719692882800,0.92916091,61156.0,61155.0,0.221024]
[1719692883043,1.00366091,61156.0,61155.0,0.221024]
[1719692883268,1.00366091,61156.0,61155.0,0.201024]
[1719692885115,1.00366091,61156.0,61155.0,0.221024]
[1719692885342,1.00366091,61156.0,61155.0,0.423524]
[1719692887790,1.00366091,61156.0,61155.0,0.403524]
[1719692888024,1.00366091,61156.0,61155.0,0.423524]
[1719692889649,1.00366091,61156.0,61155.0,0.403524]
[1719692890039,0.6966509,61156.0,61155.0,0.403524]
[1719692895279,0.72553491,61156.0,61155.0,0.423524]
[1719692895453,0.72553491,61156.0,61155.0,0.42213055]
[1719692896455,0.74823681,61156.0,61155.0,0.42213055]
[1719692896711,0.69379881,61156.0,61155.0,0.42223055]
[1719692897919,0.67109691,61156.0,61155.0,0.42223055]
[1719692898114,0.69385653,61156.0,61155.0,0.42223055]
[1719692901116,0.67109691,61156.0,61155.0,0.42223055]
[1719692901337,0.69387865,61156.0,61155.0,0.42223055]
[1719692904374,0.69385026,61156.0,61155.0,0.42223055]
[1719692904576,0.63582326,61156.0,61155.0,0.42223055]
[1719692904778,0.63582187,61156.0,61155.0,0.42223055]
[1719692907523,0.61306991,61156.0,61155.0,0.42223055]
[1719692907723,0.63576612,61156.0,61155.0,0.42223055]
[1719692908579,0.56437312,61156.0,61155.0,0.42223055]
[1719692909176,0.54167691,61156.0,61155.0,0.42223055]
[1719692910749,0.12639491,61156.0,61155.0,0.42223055]
[1719692911283,0.79680991,61156.0,61155.0,0.42223055]
[1719692916609,0.67829691,61156.0,61155.0,0.42223055]
[1719692920861,0.70105059,61156.0,61155.0,0.42223055]
[1719692922029,0.67829691,61156.0,61155.0,0.42223055]
[1719692925477,0.98399374,61156.0,61155.0,0.42223055]
[1719692926940,0.96116891,61156.0,61155.0,0.42223055]
[1719692927138,0.98403794,61156.0,61155.0,0.42223055]
[1719692927344,0.96116891,61156.0,61155.0,0.42223055]
[1719692927517,0.98403798,61156.0,61155.0,0.42223055]
[1719692929619,0.91759698,61156.0,61155.0,0.42223055]
[1719692930212,0.91776425,61156.0,61155.0,0.42223055]
[1719692932073,0.85095925,61156.0,61155.0,0.42223055]
[1719692933544,0.85068018,61156.0,61155.0,0.42223055]
[1719692935907,0.78527918,61156.0,61155.0,0.42223055]
[1719692936101,0.61382191,61156.0,61155.0,0.42223055]
[1719692936621,0.58451191,61156.0,61155.0,0.42223055]
[1719692937036,0.42683491,61156.0,61155.0,0.42223055]
[1719692939067,0.42683491,61156.0,61155.0,0.64584693]
[1719692939068,0.12639491,61156.0,61155.0,0.64584693]
[1719692939277,0.12639491,61156.0,61155.0,0.65584693]
[1719692939459,0.12169826,61156.0,61155.0,0.65584693]
[1719692939658,0.12069826,61156.0,61155.0,0.65584693]
[1719692940064,0.12169826,61156.0,61155.0,0.65584693]
[1719692940224,0.12069826,61156.0,61155.0,0.65584693]
[1719692941739,0.12169826,61156.0,61155.0,0.66484693]
[1719692942338,0.12169826,61156.0,61155.0,0.67284693]
[1719692944840,0.04719826,61156.0,61155.0,0.67284693]
[1719692945256,0.12169826,61156.0,61155.0,0.67284693]
[1719692952742,0.12169826,61156.0,61155.0,0.66284693]
[1719692952928,0.12169826,61156.0,61155.0,0.67284693]
[1719692954053,0.12169826,61156.0,61155.0,0.66284693]
[1719692961101,0.12169826,61156.0,61155.0,0.60249353]
[1719692971491,0.12169826,61156.0,61155.0,0.51139353]
[1719692971688,0.12169826,61156.0,61155.0,0.018024]
[1719692972535,0.12169826,61156.0,61155.0,0.010024]
[1719692972846,0.12169826,61156.0,61155.0,0.013024]
[1719692973207,0.12069826,61156.0,61155.0,0.004024]
[1719692973448,0.12069826,61156.0,61155.0,0.007024]
[1719692973675,2.35960526,61156.0,61155.0,0.007024]
[1719692974917,1.91922526,61156.0,61155.0,0.007024]
[1719692976549,1.91922526,61156.0,61155.0,0.004024]
[1719692977175,1.91922526,61156.0,61155.0,0.001024]
[1719692979515,1.63657146,61156.0,61155.0,0.001024]
[1719692979703,0.0745,61156.0,61155.0,0.001024]
[1719692980111,1.870897,61156.0,61155.0,0.001024]
[1719692981056,1.792201,61156.0,61155.0,0.001024]
[1719692981391,1.83409447,61156.0,61155.0,0.001024]
[1719692981564,1.8566173,61156.0,61155.0,0.001024]
[1719692982265,1.8156383,61156.0,61155.0,0.001024]
[1719692983256,0.1389163,61156.0,61155.0,0.001024]
[1719692983459,0.11639347,61156.0,61155.0,0.001024]
[1719692984572,2.21551447,61156.0,61155.0,0.001024]
[1719692984768,1.88821509,61156.0,61155.0,0.001024]
[1719692985351,1.81581609,61156.0,61155.0,0.001024]
[1719692986558,1.79311547,61156.0,61155.0,0.001024]
[1719692986770,1.81587934,61156.0,61155.0,0.001024]
[1719692986964,1.30404147,61156.0,61155.0,0.22065455]
[1719692987230,1.37854147,61156.0,61155.0,0.22065455]
[1719692988515,1.34602947,61156.0,61155.0,0.22065455]
[1719692991704,1.36932247,61156.0,61155.0,0.22065455]
[1719692992558,0.83495647,61156.0,61155.0,0.22065455]
[1719692992687,0.83495647,61156.0,61155.0,0.41855455]
[1719692993092,0.83509017,61156.0,61155.0,0.41855455]
[1719692996823,0.83510241,61156.0,61155.0,0.41855455]
[1719692998234,0.83510241,61156.0,61155.0,0.198924]
[1719692998382,0.83510241,61156.0,61155.0,0.111824]
[1719692998553,0.83510241,61156.0,61155.0,0.001024]
[1719692999470,0.83460121,61156.0,61155.0,0.001024]
[1719693000334,0.83460121,61156.0,61155.0,0.22065455]
[1719693001431,0.83460121,61156.0,61155.0,0.001024]
[1719693001640,0.76010121,61156.0,61155.0,0.001024]
[1719693001845,0.83463465,61156.0,61155.0,0.001024]
[1719693002641,0.83463465,61156.0,61155.0,0.20065455]
[1719693002859,0.83547465,61156.0,61155.0,0.41405455]
[1719693004521,0.56109865,61156.0,61155.0,0.41405455]
[1719693004831,0.63559865,61156.0,61155.0,0.41405455]
[1719693005030,0.63558018,61156.0,61155.0,0.41405455]
[1719693006325,0.63612239,61156.0,61155.0,0.41405455]
[1719693008077,0.45999525,61156.0,61155.0,0.41405455]
[1719693008280,0.53449525,61156.0,61155.0,0.41405455]
[1719693011401,0.53398024,61156.0,61155.0,0.41405455]
[1719693011811,0.53398024,61156.0,61155.0,0.39405455]
[1719693014513,0.51084847,61156.0,61155.0,0.39405455]
[1719693014712,0.53354937,61156.0,61155.0,0.39405455]
[1719693015720,1.26592037,61156.0,61155.0,0.39405455]
[1719693016049,1.61592037,61156.0,61155.0,0.194424]
[1719693016252,2.27815037,61156.0,61155.0,0.001024]
[1719693016452,2.35708437,61156.0,61155.0,0.001024]
[1719693017607,2.33438347,61156.0,61155.0,0.001024]
[1719693017832,2.35685161,61156.0,61155.0,0.001024]
[1719693018041,2.33438347,61156.0,61155.0,0.001024]
[1719693018214,2.35685161,61156.0,61155.0,0.001024]
[1719693018857,2.61760532,61156.0,61155.0,0.001024]
[1719693019197,2.45527161,61156.0,61155.0,0.001024]
[1719693019399,2.45527161,61156.0,61145.0,0.109]
[1719693019600,0.0745,61146.0,61145.0,0.12539506]
[1719693020024,0.0745,61146.0,61145.0,0.34502561]
[1719693020232,0.0745,61146.0,61145.0,0.44502561]
[1719693020454,0.0745,61146.0,61145.0,0.53582561]
[1719693020654,0.0745,61146.0,61145.0,0.53682561]
[1719693020852,1.535483,61150.0,61145.0,0.42782561]
[1719693021074,1.535483,61150.0,61146.0,0.109]
[1719693021215,1.535483,61150.0,61148.0,0.21963055]
[1719693021564,0.0745,61149.0,61148.0,0.21963055]
[1719693021734,1.400337,61149.0,61148.0,0.21963055]
[1719693022137,1.42280514,61149.0,61148.0,0.21963055]
[1719693022766,1.35730514,61149.0,61148.0,0.21963055]
[1719693022969,0.98883814,61149.0,61148.0,0.21963055]
[1719693023172,0.99083814,61149.0,61148.0,0.21963055]
[1719693023894,0.96837,61149.0,61148.0,0.21963055]
[1719693024101,0.99553548,61149.0,61148.0,0.21963055]
[1719693024337,0.81163248,61149.0,61148.0,0.21963055]
[1719693024537,0.81163248,61149.0,61148.0,0.33363055]
[1719693025078,0.81163248,61149.0,61148.0,0.33373055]
[1719693025274,0.73713248,61149.0,61148.0,0.33373055]
[1719693025481,0.784467,61149.0,61148.0,0.33373055]
[1719693026057,0.784467,61149.0,61148.0,0.42143055]
[1719693029604,0.426027,61149.0,61148.0,0.42143055]
[1719693031323,0.46663919,61149.0,61148.0,0.42143055]
[1719693035137,0.46747919,61149.0,61148.0,0.42143055]
[1719693043257,0.46547919,61149.0,61148.0,0.42143055]
[1719693043808,0.21283113,61149.0,61148.0,0.42443055]
[1719693044021,0.30109619,61149.0,61148.0,0.42443055]
[1719693045181,0.30209619,61149.0,61148.0,0.42443055]
[1719693045567,0.30109619,61149.0,61148.0,0.42443055]
[1719693045978,0.30109619,61149.0,61148.0,0.42743055]
[1719693051894,0.11595219,61149.0,61148.0,0.42743055]
[1719693052299,0.82915419,61149.0,61148.0,0.42743055]
[1719693052495,0.14310915,61149.0,61148.0,0.42743055]
[1719693052702,0.85631115,61149.0,61148.0,0.42743055]
[1719693052903,0.70680019,61149.0,61148.0,0.42743055]
[1719693053106,0.73396549,61149.0,61148.0,0.42743055]
[1719693053306,0.68341549,61149.0,61148.0,0.42743055]
[1719693053511,0.66271549,61149.0,61148.0,0.42743055]
[1719693055964,0.63555019,61149.0,61148.0,0.42743055]
[1719693056164,0.66240292,61149.0,61148.0,0.42743055]
[1719693056570,0.66240291,61149.0,61148.0,0.42743055]
[1719693057627,0.66240291,61149.0,61148.0,0.42443055]
[1719693057830,0.66240291,61149.0,61148.0,0.42643055]
[1719693057980,0.66240291,61149.0,61148.0,0.42343055]
[1719693059184,0.66212456,61149.0,61148.0,0.42343055]
[1719693060352,0.66212456,61149.0,61148.0,0.2038]
[1719693060555,0.66212456,61149.0,61148.0,0.2058]
[1719693060716,0.66212456,61149.0,61148.0,0.42543055]
[1719693061739,0.66232325,61149.0,61148.0,0.42543055]
[1719693061944,0.14272525,61149.0,61148.0,0.42543055]
[1719693062391,0.14272525,61149.0,61148.0,0.0041]
[1719693063243,0.11595219,61149.0,61148.0,0.0041]
[1719693063372,0.11595219,61149.0,61148.0,0.0021]
[1719693063373,2.27821319,61149.0,61148.0,0.0021]
[1719693063573,2.27921319,61149.0,61148.0,0.0001]
[1719693064076,2.28021319,61149.0,61148.0,0.0001]
[1719693064319,2.27821319,61149.0,61148.0,0.0001]
[1719693064521,2.30598625,61149.0,61148.0,0.0001]
[1719693064743,2.31198625,61149.0,61148.0,0.0001]
[1719693065189,2.28521319,61149.0,61148.0,0.0001]
[1719693065387,2.3113539,61149.0,61148.0,0.0001]
[1719693065977,2.3053539,61149.0,61148.0,0.0001]
[1719693066389,2.3073539,61149.0,61148.0,0.0001]
[1719693067953,2.3073067,61149.0,61148.0,0.0001]
[1719693068157,2.3073067,61149.0,61148.0,0.001024]
[1719693070061,2.3073067,61149.0,61146.0,0.000924]
[1719693070062,2.4057267,61149.0,61146.0,0.000924]
[1719693070288,3.955778,61148.0,61146.0,0.000924]
[1719693070440,4.054198,61148.0,61144.0,0.000924]
[1719693070643,0.0745,61145.0,61144.0,0.000924]
[1719693070873,4.030278,61145.0,61144.0,0.000924]
[1719693071205,4.05656803,61145.0,61144.0,0.000924]
[1719693071402,3.64729903,61145.0,61144.0,0.000924]
[1719693071692,3.59762703,61145.0,61144.0,0.000924]
[1719693071849,3.34548403,61145.0,61144.0,0.000924]
[1719693072048,3.32938403,61145.0,61144.0,0.000924]
[1719693072251,3.27336503,61145.0,61144.0,0.000924]
[1719693072650,3.22369303,61145.0,61144.0,0.000924]
[1719693073714,2.31799503,61145.0,61144.0,0.22055455]
[1719693073944,2.31799503,61145.0,61144.0,0.42105455]
[1719693073945,1.18066903,61145.0,61144.0,0.42105455]
[1719693074365,1.154279,61145.0,61144.0,0.42105455]
[1719693074548,1.18063938,61145.0,61144.0,0.40105455]
[1719693074672,1.18054014,61145.0,61144.0,0.40105455]
[1719693074879,0.36667514,61145.0,61144.0,0.42105455]
[1719693075078,0.36617514,61145.0,61144.0,0.42105455]
[1719693075280,0.03416114,61145.0,61144.0,0.42105455]
[1719693075485,0.0823,61145.0,61144.0,0.42105455]
[1719693076333,0.0785,61145.0,61144.0,0.42105455]
[1719693076919,0.0795,61145.0,61144.0,0.42905455]
[1719693077303,0.0755,61145.0,61144.0,0.49216001]
[1719693077658,0.0765,61145.0,61144.0,0.49916001]
[1719693081087,0.0764,61145.0,61144.0,0.49916001]
[1719693083357,0.0763,61145.0,61144.0,0.49916001]
[1719693086633,0.0763,61145.0,61144.0,0.49926001]
[1719693094717,0.0763,61145.0,61144.0,0.43615455]
[1719693096516,0.0763,61145.0,61144.0,0.43445185]
[1719693096710,0.0763,61145.0,61144.0,0.43312826]
[1719693102312,0.07714,61145.0,61144.0,0.43312826]
[1719693102522,0.07714,61145.0,61144.0,0.42834149]
[1719693102684,0.07714,61145.0,61144.0,0.41214041]
[1719693108446,0.07714,61145.0,61144.0,0.40981891]
[1719693108656,0.07714,61145.0,61144.0,0.40667885]
[1719693111021,0.07714,61145.0,61144.0,0.20617885]
[1719693111468,0.07714,61145.0,61144.0,0.0151]
[1719693111650,1.938868,61145.0,61144.0,0.01128987]
[1719693111849,2.004368,61145.0,61144.0,0.01128987]
[1719693112296,2.003368,61145.0,61144.0,0.00428987]
[1719693112489,2.005368,61145.0,61144.0,0.0001]
[1719693112720,2.008368,61145.0,61144.0,0.0001]
[1719693112932,2.03458828,61145.0,61144.0,0.0001]
[1719693113143,2.02858828,61145.0,61144.0,0.0001]
[1719693113312,2.03120611,61145.0,61144.0,0.0001]
[1719693113529,1.89237811,61145.0,61142.0,0.18871366]
[1719693113732,1.338456,61144.0,61142.0,0.20510872]
[1719693114637,0.0745,61143.0,61142.0,0.20510872]
[1719693114827,1.139817,61143.0,61142.0,0.20510872]
[1719693115034,1.147817,61143.0,61142.0,0.20510872]
[1719693116106,1.147817,61143.0,61142.0,0.20610872]
[1719693116525,0.994632,61143.0,61142.0,0.18757031]
[1719693116722,0.71564225,61143.0,61142.0,0.18757031]
[1719693116927,0.79004225,61143.0,61142.0,0.18757031]
[1719693117129,0.762045,61143.0,61142.0,0.18757031]
[1719693117871,0.762045,61143.0,61142.0,0.1826372]
[1719693118299,0.762045,61143.0,61142.0,0.1836372]
[1719693120000,0.744431,61143.0,61142.0,0.1836372]
[1719693120202,0.744331,61143.0,61142.0,0.1836372]
[1719693121667,0.522254,61143.0,61142.0,0.1836372]
[1719693121869,0.596754,61143.0,61142.0,0.1836372]
[1719693122080,0.227502,61143.0,61142.0,0.1836372]
[1719693122283,0.302002,61143.0,61142.0,0.1836372]
[1719693122496,0.302002,61143.0,61142.0,0.3753372]
[1719693122497,0.100814,61143.0,61142.0,0.3753372]
[1719693122702,0.0745,61143.0,61142.0,0.3753372]
[1719693122915,0.175314,61143.0,61142.0,0.3753372]
[1719693123976,0.0745,61143.0,61142.0,0.3753372]
[1719693124378,0.0744,61143.0,61142.0,0.3753372]
[1719693128521,0.0744,61143.0,61142.0,0.37264994]
[1719693128673,0.0743,61143.0,61142.0,0.37264994]
[1719693129926,0.0743,61143.0,61142.0,0.37274994]
[1719693130529,0.0743,61143.0,61142.0,0.22845528]
[1719693130729,0.00084,61145.0,61144.0,0.37064994]
[1719693130999,0.00084,61145.0,61144.0,0.387045]
[1719693131000,0.07534,61145.0,61144.0,0.387045]
[1719693132031,0.07734,61145.0,61144.0,0.393045]
[1719693133608,0.07634,61145.0,61144.0,0.393045]
[1719693134409,0.07634,61145.0,61144.0,0.399045]
[1719693136077,0.07634,61145.0,61144.0,0.38264994]
[1719693148223,0.07634,61145.0,61144.0,0.29994994]
[1719693152710,0.07634,61145.0,61144.0,0.29717778]
[1719693153381,0.894938,61145.0,61144.0,0.29717778]
[1719693153754,0.726338,61145.0,61144.0,0.29717778]
[1719693154419,0.690338,61145.0,61144.0,0.29717778]
[1719693155189,0.461638,61145.0,61144.0,0.29717778]
[1719693165128,0.446238,61145.0,61144.0,0.29717778]
[1719693165451,0.405289,61145.0,61144.0,0.29717778]
[1719693165799,0.405289,61145.0,61144.0,0.29810178]
[1719693174789,0.07634,61145.0,61144.0,0.29810178]
[1719693175118,0.494238,61145.0,61144.0,0.29810178]
[1719693175949,0.249978,61145.0,61144.0,0.29810178]
[1719693177658,0.249978,61145.0,61144.0,0.121924]
[1719693177861,0.249978,61145.0,61144.0,0.29023069]
[1719693178061,0.249978,61145.0,61144.0,0.121924]
[1719693182982,0.175478,61145.0,61144.0,0.29023069]
[1719693183194,0.249978,61145.0,61144.0,0.29810178]
[1719693185959,0.249978,61145.0,61144.0,0.29277971]
[1719693186657,0.07634,61145.0,61144.0,0.29277971]
[1719693187441,0.677873,61145.0,61144.0,0.29277971]
[1719693188042,0.70467343,61145.0,61144.0,0.29277971]
[1719693189441,0.704707,61145.0,61144.0,0.29277971]
[1719693190997,0.654955,61145.0,61144.0,0.29277971]
[1719693192535,0.65486924,61145.0,61144.0,0.29277971]
[1719693195555,0.628121,61145.0,61144.0,0.29277971]
[1719693195757,0.65482804,61145.0,61144.0,0.29277971]
[1719693197483,0.37636304,61145.0,61144.0,0.29277971]
[1719693197685,0.45086304,61145.0,61144.0,0.29277971]
[1719693197885,0.37636304,61145.0,61144.0,0.29277971]
[1719693198059,0.45086304,61145.0,61144.0,0.37197971]
[1719693198541,0.424156,61145.0,61144.0,0.37197971]
[1719693200432,0.424156,61145.0,61144.0,0.19580193]
[1719693200628,0.424156,61145.0,61144.0,0.36410862]
[1719693200830,0.424156,61145.0,61144.0,0.19580193]
[1719693202069,0.424156,61145.0,61144.0,0.36410862]
[1719693203582,0.424156,61145.0,61144.0,0.37197971]
[1719693203958,0.424156,61145.0,61144.0,0.36410862]
[1719693206045,0.424156,61145.0,61144.0,0.37197971]
[1719693209276,0.424156,61145.0,61144.0,0.36410862]
[1719693209694,0.424156,61145.0,61144.0,0.37197971]
[1719693209895,0.424156,61145.0,61144.0,0.36410862]
[1719693212773,0.424156,61145.0,61144.0,0.19580193]
[1719693213979,0.737418,61145.0,61144.0,0.36410862]
[1719693214145,0.977418,61145.0,61144.0,0.36410862]
[1719693214345,0.76410287,61145.0,61144.0,0.36410862]
[1719693214747,0.76414182,61145.0,61144.0,0.36410862]
[1719693215183,0.76414182,61145.0,61144.0,0.012924]